[Event "Danish-ch Masters 2022"]
[Site "Svendborg"]
[Date "2022.04.14"]
[Round "6.1"]
[White "Haubro, Martin"]
[Black "Hoi, Carsten"]
[Result "1-0"]
[ECO "C72"]
[WhiteElo "2399"]
[BlackElo "2343"]
[Annotator "TA"]
[PlyCount "113"]
[EventDate "2022.04.10"]
[EventType "tourn"]
[EventCountry "DEN"]
[SourceTitle "playchess.com"]
[Source "ChessBase"]
[SourceQuality "1"]
[TimeControl "40/5400+30:1800+30"]

{[%evp 18,113,31,34,41,35,47,53,59,63,64,59,61,31,71,43,81,89,160,94,100,78,80,78,92,62,96,36,79,47,75,7,6,-4,16,0,8,0,63,31,45,56,81,50,51,17,102,71,111,43,38,30,52,67,56,5,2,7,67,44,131,141,111,94,125,0,0,0,0,0,0,0,0,0,10,0,20,16,12,0,87,122,118,120,96,106,137,130,125,110,166,104,184,177,223,212,1006,960]} 1. e4 {[%emt 0:00:03] Primel,D} e5 {[%emt 0:03:52]} 2. Nf3 {[%emt 0:00:22]} Nc6 {[%emt 0:00:27]} 3. Bb5 {[%emt 0:00:08]} a6 {[%emt 0:00:49]} 4. Ba4 {[%emt 0:00:14]} d6 {[%emt 0:00:48]} 5. O-O {[%emt 0:00:33]} Bd7 {[%emt 0:01:54]} 6. c3 {[%emt 0:00:40]} g6 {[%emt 0:02:24]} 7. d4 {[%emt 0:02:38]} Bg7 {[%emt 0:01:11]} 8. h3 {[%emt 0:01:35]} Nf6 {[%emt 0:03:04]} 9. Re1 {[%emt 0:02:03]} O-O {[%emt 0:05:08]} 10. Nbd2 {[%emt 0:01:54]} Nh5 {[%emt 0:05:48][%cal Re5d4] C60: Ruy Lopez: Unusual Black 3rd moves and 3...g6.} 11. Nf1 {[%emt 0:01:38]} h6 {[%emt 0:04:36]} 12. Be3 {[%emt 0:04:16]} Qe7 {[%emt 0:04:43] White is slightly better.} 13. Bc2 {[%emt 0:10:08]} Kh7 {[%emt 0:07:19]} 14. g4 {[%emt 0:13:30] [#]} Nf6 $146 {[%emt 0:14:58]} ({Predecessor:} 14... Nf4 15. Bxf4 exf4 16. Qd2 Qf6 17. e5 dxe5 18. dxe5 Qe7 19. Qxf4 Rae8 20. Rad1 Bc8 {1-0 (46) Verlinsky,B-Zubarev,N Moscow 1937 EXT 2012 [Primel,D]}) 15. d5 {[%emt 0:07:41]} Nd8 {[%emt 0:02:29]} 16. N3h2 {[%emt 0:02:36]} Ng8 {[%emt 0:05:38]} 17. Ng3 {[%emt 0:01:23]} f6 {[%emt 0:05:48]} (17... a5 $142) 18. Qd2 {[%emt 0:02:56]} (18. h4 $142) 18... Nf7 $16 {[%emt 0:03:18]} 19. b4 {[%emt 0:04:02]} Qe8 {[%emt 0:05:43]} 20. c4 {[%emt 0:00:59] &Bianco is more active.} Ne7 {[%emt 0:00:41]} 21. Kg2 {[%emt 0:02:53]} Qc8 {[%emt 0:01:12]} 22. Qd3 {[%emt 0:11:37]} (22. c5 $16) 22... Kg8 {[%emt 0:01:36]} 23. Kh1 {[%emt 0:04:59]} a5 {[%emt 0:02:33] [#]} 24. c5 {[%emt 0:05:40]} (24. b5 $1 $16) 24... axb4 $11 {[%emt 0:00:45]} 25. Qd2 {[%emt 0:00:50]} Ng5 {[%emt 0:05:22]} (25... Ba4 $5 {[%cal Ra4c2]}) 26. h4 {[%emt 0:01:43][%mdl 1024] White has compensation.} Nh3 {[%emt 0:00:19]} 27. f3 {[%emt 0:00:41]} Ba4 {[%emt 0:02:51]} (27... h5 $11) 28. Bd3 {[%emt 0:01:03][%cal Bc2d3,Bd3c4,Bc4b3][%mdl 32]} Nf4 {[%emt 0:00:32]} 29. Bc4 {[%emt 0:02:53]} Bd7 {[%emt 0:02:26]} 30. Qxb4 {[%emt 0:00:09]} Ra4 {[%emt 0:00:15]} 31. Qc3 {[%emt 0:01:48]} (31. Qb3 $5 {[%cal Rc5c6]}) 31... Kh7 {[%emt 0:01:04]} (31... f5 $11) 32. Bb3 $16 {[%emt 0:00:05]} Ra8 {[%emt 0:00:27]} 33. Rac1 {[%emt 0:00:24]} (33. h5 $16) 33... f5 $14 {[%emt 0:02:06]} 34. exf5 {[%emt 0:02:46]} Nexd5 {[%emt 0:01:29]} 35. fxg6+ {[%emt 0:00:13]} Kh8 {[%emt 0:00:08]} 36. Qd2 {[%emt 0:01:21]} (36. Bxd5 $14 Nxd5 37. Qd2 Nxe3 38. cxd6) 36... Nxe3 $11 {[%emt 0:01:33]} 37. Rxe3 {[%emt 0:01:45]} d5 {[%emt 0:00:40]} (37... Qd8 $11) 38. Bxd5 $14 {[%emt 0:01:10]} Nxd5 {[%emt 0:00:11]} ({Black should play} 38... Qd8 $14 39. Bxb7 Ra7) 39. Qxd5 $16 {[%emt 0:00:05]} Bc6 {[%emt 0:01:55]} 40. Qb3 {[%emt 0:00:23]} Qd8 {[%emt 0:01:37][%cal Oe5e4] [#]} 41. Nf5 {[%emt 0:25:56]} ({White must play} 41. h5 $1 $16) 41... Rxf5 $11 {[%emt 0:04:24]} 42. gxf5 {[%emt 0:00:07]} Qxh4 {[%emt 0:01:46]} 43. Rce1 {[%emt 0:08:02]} Rd8 {[%emt 0:07:18][%cal Oc6f3] ( -> ...Bxf3+!)} 44. Rd1 {[%emt 0:01:14] And now Rxd8+ would win.} Rf8 {[%emt 0:01:06]} 45. Qd3 {[%emt 0:00:34]} Qh3 {[%emt 0:03:23]} 46. Rg1 {[%emt 0:02:09]} Rxf5 {[%emt 0:02:23] [#]} 47. Rg3 $1 {[%emt 0:00:35]} Qh5 {[%emt 0:00:53]} 48. Kg2 {[%emt 0:00:22] aiming for Ng4.} Rf8 {[%emt 0:00:52]} (48... Rf4 $11) 49. Ng4 $16 {[%emt 0:01:06][%cal Og4h6] Threatens to win with Nxh6!} e4 {[%emt 0:04:46]} 50. fxe4 {[%emt 0:01:09][%cal Og4h6] Hoping for Nxh6!} Qxc5 {[%emt 0:00:38]} 51. Ref3 {[%emt 0:01:29] Inhibits Qf5.} Re8 {[%emt 0:01:38]} 52. Nf2 {[%emt 0:00:04]} Qb4 {[%emt 0:00:57]} 53. Rg4 {[%emt 0:00:45]} Qb2 {[%emt 0:00:44]} (53... Qd6 $16 {was necessary.}) 54. Rf7 {[%emt 0:00:36]} ({White should try} 54. Rh4 $18) 54... Qe5 {[%emt 0:00:31]} (54... Qxa2 $16 55. Qf3 Kg8 56. Rxc7 Rf8) 55. Qf3 {[%emt 0:00:21]} Qe6 {[%emt 0:02:04]} (55... Kg8 {keeps fighting.} 56. a3 Ra8) 56. Qf4 {[%emt 0:00:34] Strongly threatening Rh4.} Qd6 $2 {[%emt 0:02:27] [#]} (56... Kg8 57. Rxc7 Re7) 57. Rxg7 $1 {[%emt 0:00:55][%mdl 512] Weighted Error Value: White=0.21 (precise) /Black=0.26 (precise)} 1-0

[Event "Danish-ch Masters 2022"]
[Site "Svendborg"]
[Date "2022.04.14"]
[Round "6.4"]
[White "Schandorff, Lars"]
[Black "Olsen, Filip Boe"]
[Result "1/2-1/2"]
[ECO "A13"]
[WhiteElo "2469"]
[BlackElo "2386"]
[Annotator "TA"]
[PlyCount "62"]
[EventDate "2022.04.10"]
[EventType "tourn"]
[EventCountry "DEN"]
[SourceTitle "playchess.com"]
[Source "ChessBase"]
[SourceQuality "1"]
[TimeControl "40/5400+30:1800+30"]

{[%evp 9,62,0,0,0,12,-5,0,0,0,0,0,0,0,0,0,0,0,0,0,-21,-12,-25,-14,-19,-15,-66,-49,-90,-77,-50,-66,-68,-49,-51,-49,-49,-42,-57,-45,-61,-27,-29,-31,-26,-27,-55,-40,-62,-49,-55,0,-70,0,-58,0]} 1. c4 {[%emt 0:00:16] ChessBase II} e6 {[%emt 0:00:09]} 2. Nf3 {[%emt 0:00:16]} Nf6 {[%emt 0:00:10]} 3. Nc3 {[%emt 0:00:37]} d5 {[%emt 0:00:15]} 4. e3 {[%emt 0:00:33]} b6 {[%emt 0:00:20]} 5. b3 {[%emt 0:01:08]} Bb7 {[%emt 0:00:18]} 6. Bb2 {[%emt 0:00:07] A17: English Opening: 1...Nf6 with ...Bb4.} Nbd7 {[%emt 0:00:11]} 7. cxd5 {[%emt 0:02:22]} exd5 {[%emt 0:00:15]} 8. Rc1 {[%emt 0:01:56] The position is equal.} a6 {[%emt 0:02:12]} 9. d4 {[%emt 0:03:32]} Bd6 {[%emt 0:00:19]} 10. g3 {[%emt 0:00:22]} O-O {[%emt 0:00:38]} 11. Bg2 {[%emt 0:00:05]} Re8 {[%emt 0:06:25]} 12. O-O {[%emt 0:00:17]} Ne4 {[%emt 0:03:54]} 13. Qc2 {[%emt 0:05:05]} Qe7 {[%emt 0:14:50] [#]} 14. Ne5 $146 {[%emt 0:18:15]} ({Predecessor:} 14. Nxe4 dxe4 15. Ne5 Nf6 16. Nc4 Nd5 17. Nxd6 {½-½ (17) Sulava,N (2422)-Santos Ruiz,M (2549) Brest 2019 CBM 190 Extra [ChessBase II]}) 14... Nxe5 {[%emt 0:16:37]} 15. Nxe4 {[%emt 0:03:15] [#]} Nf3+ {[%emt 0:01:05]} 16. Bxf3 {[%emt 0:00:11]} dxe4 {[%emt 0:00:06]} 17. Bg2 {[%emt 0:01:54]} (17. Be2 $11) 17... h5 {[%emt 0:06:08][%cal Bh7h5,Bh5h4][%mdl 32]} 18. Rce1 {[%emt 0:06:37]} h4 {[%emt 0:11:28]} 19. f4 {[%emt 0:00:42]} exf3 {[%emt 0:01:23]} 20. Bxf3 {[%emt 0:00:07]} Bxf3 {[%emt 0:00:18]} 21. Rxf3 {[%emt 0:00:04]} Qe4 {[%emt 0:06:11]} 22. Qxe4 {[%emt 0:01:30]} Rxe4 {[%emt 0:00:03]} 23. Kf2 {[%emt 0:20:02]} Rae8 {[%emt 0:04:18]} 24. Rg1 {[%emt 0:07:11]} Kf8 {[%emt 0:06:04]} 25. gxh4 {[%emt 0:10:42]} Rxh4 {[%emt 0:06:37]} 26. h3 {[%emt 0:00:35]} f6 {[%emt 0:02:42]} 27. Bc3 {[%emt 0:04:38]} Kf7 {[%emt 0:00:44]} 28. Be1 {[%emt 0:01:29]} Rhe4 {[%emt 0:01:55]} 29. Bc3 {[%emt 0:05:50]} Rh4 {[%emt 0:02:16]} 30. Be1 {[%emt 0:00:11]} Rhe4 {[%emt 0:01:22]} 31. Bc3 {[%emt 0:00:07]} Rh4 {[%emt 0:00:09] Weighted Error Value: White=0.09 (flawless) /Black=0.10 (very precise)} (31... Rh8 $15) 1/2-1/2

[Event "Danish-ch Masters 2022"]
[Site "Svendborg"]
[Date "2022.04.14"]
[Round "6.5"]
[White "Percivaldi, Martin"]
[Black "Sylvan, Jacob"]
[Result "1/2-1/2"]
[ECO "D37"]
[WhiteElo "2389"]
[BlackElo "2312"]
[Annotator "TA"]
[PlyCount "66"]
[EventDate "2022.04.10"]
[EventType "tourn"]
[EventCountry "DEN"]
[SourceTitle "playchess.com"]
[Source "ChessBase"]
[SourceQuality "1"]
[TimeControl "40/5400+30:1800+30"]

{[%evp 9,66,17,34,34,44,44,44,45,45,33,44,45,53,23,18,31,34,34,59,102,56,60,144,56,28,44,69,17,19,-29,10,10,13,0,7,21,26,18,27,0,0,0,51,0,46,48,47,34,43,27,28,41,55,20,42,0,0,0,0]} 1. d4 {[%emt 0:00:11]} d5 {[%emt 0:00:26]} 2. c4 {[%emt 0:00:25]} e6 {[%emt 0:00:05]} 3. Nf3 {[%emt 0:00:14]} Nf6 {[%emt 0:00:07]} 4. Nc3 {[%emt 0:00:14]} dxc4 {[%emt 0:00:36]} 5. e4 {[%emt 0:02:30][%cal Be2e4,Be4e5][%mdl 32]} b5 {[%emt 0:01:37]} 6. e5 {[%emt 0:00:13] D24: Queen's Gambit Accepted: 3 Nf3 Nf6 4 Nc3.} Nd5 {[%emt 0:00:05]} 7. Nxb5 {[%emt 0:00:09]} Nb6 {[%emt 0:00:05]} 8. Be2 {[%emt 0:00:20] White is slightly better.} Nc6 $1 {[%emt 0:00:40] 8...Nc6 is better than 8...Be7.} 9. Nc3 {[%emt 0:01:17]} Be7 {[%emt 0:02:54]} 10. Be3 {[%emt 0:02:20]} O-O {[%emt 0:02:53]} 11. a3 {[%emt 0:01:39]} Bb7 {[%emt 0:07:43]} 12. Qc2 {[%emt 0:02:30] [#]} Rb8 $146 {[%emt 0:09:48]} ({Predecessor:} 12... h6 13. Rd1 Qd7 14. h4 Rad8 15. Qe4 f5 16. exf6 Bxf6 17. Ng5 Bxg5 18. hxg5 Qe7 {1-0 (75) Frolyanov,D (2546)-Zverev,L (2087) Cheliabinsk 2020}) 13. h4 {[%emt 0:09:58]} f5 {[%emt 0:08:31] Threatens to win with ...f4.} 14. exf6 $1 {[%emt 0:06:59]} gxf6 {[%emt 0:03:33]} (14... Bxf6 $16 15. Ng5 Bxg5 16. hxg5 g6) 15. Rd1 $14 {[%emt 0:11:50][%cal Od4d5]} ({Don't play} 15. Qe4 Ne5 16. Qc2 Nxf3+ 17. gxf3 Kh8 $11) 15... Na5 {[%emt 0:03:59] [#]} (15... Qe8 $14) 16. Bh6 {[%emt 0:04:13] &Bianco is more active.} ({Better is} 16. Ng5 $1 $16 {[%mdl 512]} fxg5 17. hxg5) 16... Rf7 {[%emt 0:04:39]} 17. Rh3 {[%emt 0:03:10][%cal Od4d5]} Bf8 {[%emt 0:06:51]} 18. Rg3+ {[%emt 0:06:03]} (18. Be3 $1 $14) 18... Kh8 $11 {[%emt 0:03:00]} 19. Qc1 {[%emt 0:00:17]} (19. Bc1 $142) 19... Nd5 {[%emt 0:04:29] White must now prevent ...Nb3.} 20. Bxf8 {[%emt 0:09:26] Chess con chili.} Qxf8 {[%emt 0:00:43]} 21. Ne4 {[%emt 0:00:10]} Rg7 {[%emt 0:12:02]} (21... Nb6 $5 {[%cal Rb7e4]} 22. Nc5 Bd5 $11) 22. Kf1 {[%emt 0:15:16]} Rxg3 {[%emt 0:05:14]} 23. Nxg3 {[%emt 0:01:13]} Bc6 {[%emt 0:02:50]} 24. Qd2 {[%emt 0:03:14]} ({Wrong is} 24. Bxc4 $2 Nxc4 25. b4 (25. Qxc4 $2 Bb5 $19) 25... Bb5 $19) 24... Nb3 {[%emt 0:05:20]} 25. Qc2 {[%emt 0:01:39]} Na5 {[%emt 0:00:50]} (25... Nb6 $1 $11) 26. Nd2 {[%emt 0:03:04]} ({White should play} 26. Re1 $14) 26... Qh6 {[%emt 0:02:17]} (26... Qd6 $11 {is more appropriate.} 27. Nxc4 Nxc4 28. Bxc4 Ne3+ 29. fxe3 Qxg3) 27. Nxc4 $14 {[%emt 0:02:12]} Nxc4 {[%emt 0:00:20]} 28. Qxc4 {[%emt 0:00:18]} Bb5 {[%emt 0:00:18]} 29. Qc2 {[%emt 0:01:34] Hoping for Bxb5.} Qxh4 {[%emt 0:00:56]} 30. Bxb5 {[%emt 0:00:55]} Rxb5 {[%emt 0:00:43]} 31. Qc6 {[%emt 0:01:51]} Qg4 $1 {[%emt 0:02:39][%cal Rg4d1]} 32. Re1 {[%emt 0:03:54]} Rxb2 {[%emt 0:00:32]} 33. Qxe6 {[%emt 0:02:45]} Qxe6 {[%emt 0:01:04] Weighted Error Value: White=0.15 (very precise) /Black=0.13 (very precise)} (33... Qxd4 $2 {is a self mate.} 34. Qe8+ Kg7 35. Nf5#) 1/2-1/2

[Event "Danish-ch Masters 2022"]
[Site "Svendborg"]
[Date "2022.04.15"]
[Round "7.4"]
[White "Borge, Nikolaj"]
[Black "Schandorff, Lars"]
[Result "1/2-1/2"]
[ECO "C50"]
[WhiteElo "2392"]
[BlackElo "2469"]
[Annotator "TA"]
[PlyCount "124"]
[EventDate "2022.04.10"]
[EventType "tourn"]
[EventCountry "DEN"]
[SourceTitle "playchess.com"]
[Source "ChessBase"]
[SourceQuality "1"]
[TimeControl "40/5400+30:1800+30"]

{[%evp 10,124,14,7,30,7,19,8,17,21,16,8,8,0,9,4,7,0,0,0,0,0,0,0,0,8,4,-70,10,6,19,18,15,6,8,6,10,14,8,10,14,0,0,0,0,2,8,0,14,-3,0,0,0,0,0,0,2,4,6,0,0,0,0,0,14,11,15,14,22,14,14,14,14,16,14,0,0,0,21,22,22,0,0,0,0,0,0,0,0,0,0,0,0,0,0,0,8,8,8,0,0,0,0,0,8,8,8,0,0,0,0,0,0,0,0,0,29985]} 1. e4 {[%emt 0:00:04]} e5 {[%emt 0:00:18]} 2. Nf3 {[%emt 0:00:07]} Nc6 {[%emt 0:00:06]} 3. Bc4 {[%emt 0:00:19]} Bc5 {[%emt 0:00:28]} 4. O-O {[%emt 0:00:22]} Nf6 {[%emt 0:00:13]} 5. d3 {[%emt 0:00:25][%cal Bd2d3,Bd3d4][%mdl 32]} d6 {[%emt 0:00:59]} 6. c3 {[%emt 0:00:56]} a5 {[%emt 0:01:16] C54: Giuoco Piano: 4 c3 Nf6, main lines with 5 d4 and 5 d3.} 7. Re1 {[%emt 0:07:38]} O-O {[%emt 0:01:16]} 8. Nbd2 {[%emt 0:11:18]} Be6 {[%emt 0:19:03]} 9. Bb5 {[%emt 0:15:45]} Ne7 {[%emt 0:06:20]} 10. d4 {[%emt 0:02:51]} Ba7 {[%emt 0:02:26]} 11. Bd3 {[%emt 0:12:56]} Ng6 {[%emt 0:01:36]} 12. h3 {[%emt 0:13:29]} Nh5 {[%emt 0:17:21] [#]} 13. Nc4 $146 {[%emt 0:06:18]} ({Predecessor:} 13. Nf1 exd4 14. Nxd4 Nhf4 15. Bc2 Bxd4 16. cxd4 f5 17. e5 Bd5 18. Bxf4 Nxf4 19. Bb3 Bxb3 20. Qxb3+ {½-½ (26) Wosch,A (2356)-Willmann,B (2283) LSS email 2017}) 13... Nhf4 {[%emt 0:04:18]} 14. Bf1 {[%emt 0:00:42][%cal Rd4e5]} exd4 {[%emt 0:05:50]} 15. Nxd4 {[%emt 0:04:22]} d5 {[%emt 0:08:21]} 16. exd5 {[%emt 0:00:05]} Bxd5 {[%emt 0:00:10][%cal Of4g2]} 17. Bxf4 {[%emt 0:01:10]} Nxf4 {[%emt 0:00:15]} 18. Qg4 {[%emt 0:00:47]} (18. Ne3 $11) 18... Ng6 {[%emt 0:07:09]} (18... Qf6 $1 $15) 19. Ne3 {[%emt 0:03:23] The position is equal.} Bxd4 {[%emt 0:01:14]} 20. Qxd4 {[%emt 0:00:20]} Be6 {[%emt 0:00:32]} 21. Red1 {[%emt 0:02:31]} Qxd4 {[%emt 0:02:45]} (21... Qg5 {with more complications.} 22. g3 Rfd8 23. Qa4 Qh5) 22. cxd4 {[%emt 0:01:04]} c6 {[%emt 0:01:10]} 23. d5 {[%emt 0:00:11]} cxd5 {[%emt 0:00:06]} 24. Nxd5 {[%emt 0:00:08]} Rad8 {[%emt 0:09:24]} 25. Nb6 {[%emt 0:01:35]} Rxd1 {[%emt 0:00:56]} 26. Rxd1 {[%emt 0:00:05]} Bxa2 {[%emt 0:00:12]} 27. Ra1 {[%emt 0:00:05]} Be6 {[%emt 0:00:06]} 28. Rxa5 {[%emt 0:00:06]} Ne7 {[%emt 0:02:06]} 29. Bb5 {[%emt 0:04:33]} Rd8 {[%emt 0:05:32]} 30. Ra7 {[%emt 0:01:15]} Rb8 {[%emt 0:00:06]} 31. Nd7 {[%emt 0:01:26]} Bxd7 {[%emt 0:00:05]} 32. Bxd7 $11 {[%emt 0:00:04][%mdl 4096] Endgame KRB-KRN} Nc6 {[%emt 0:00:55]} 33. Ra3 {[%emt 0:02:03]} Rd8 {[%emt 0:00:45]} 34. Bg4 {[%emt 0:00:34]} g6 {[%emt 0:02:05]} 35. Rb3 {[%emt 0:01:13]} h5 {[%emt 0:00:08]} 36. Bf3 {[%emt 0:00:40]} Rd7 {[%emt 0:01:01]} 37. Rb6 {[%emt 0:00:30]} Rc7 {[%emt 0:00:25]} 38. b4 {[%emt 0:03:26]} Kf8 {[%emt 0:00:13]} 39. Kh2 {[%emt 0:00:34]} Ke7 {[%emt 0:01:02]} 40. Kg3 {[%emt 0:00:28]} Nd8 {[%emt 0:01:19]} 41. Kf4 {[%emt 0:06:42]} Rc2 {[%emt 0:11:54]} 42. Bxb7 {[%emt 0:07:45]} Rxf2+ {[%emt 0:00:17]} 43. Bf3 {[%emt 0:01:06]} Rb2 {[%emt 0:02:07]} 44. Ke5 {[%emt 0:02:06]} Rd2 {[%emt 0:06:14]} 45. Ra6 {[%emt 0:06:54] [#] aiming for Ra7+.} f6+ {[%emt 0:00:52]} 46. Ke4 {[%emt 0:00:46]} Ne6 {[%emt 0:01:11]} 47. Ke3 {[%emt 0:01:31]} Rb2 {[%emt 0:00:37]} 48. Rb6 {[%emt 0:01:14]} Rb3+ {[%emt 0:00:56]} 49. Kd2 {[%emt 0:01:58]} Nd4 {[%emt 0:01:25]} 50. Be4 {[%emt 0:02:18]} g5 {[%emt 0:01:05]} 51. Bd3 {[%emt 0:01:00]} Ra3 {[%emt 0:01:37]} 52. Ra6 {[%emt 0:02:28]} Rxa6 {[%emt 0:01:03]} 53. Bxa6 {[%emt 0:00:07] KB-KN} Kd6 {[%emt 0:00:41]} 54. Kd3 {[%emt 0:01:27]} Ne6 {[%emt 0:00:33]} 55. Ke4 {[%emt 0:00:26] [#] Hoping for Kf5.} Nf4 {[%emt 0:01:39]} 56. Bf1 {[%emt 0:01:41]} h4 {[%emt 0:00:51]} 57. Kf5 {[%emt 0:01:23]} Nd5 {[%emt 0:00:33]} 58. Bc4 {[%emt 0:01:21]} Ne3+ {[%emt 0:01:19]} 59. Kxf6 {[%emt 0:00:05] Be2 is the strong threat.} Nxc4 {[%emt 0:00:09]} 60. Kxg5 {[%emt 0:00:09]} Ne3 $1 {[%emt 0:00:06]} 61. Kxh4 {[%emt 0:00:05] Threatens to win with g4.} Nxg2+ {[%emt 0:00:04]} 62. Kg3 {[%emt 0:00:26]} Ke5 $2 {[%mdl 40960] Weighted Error Value: White=0.06 (flawless) /Black=0.05 (flawless) . An unexpected result.} 1/2-1/2

[Event "Danish-ch Masters 2022"]
[Site "Svendborg"]
[Date "2022.04.15"]
[Round "7.5"]
[White "Hoi, Carsten"]
[Black "Percivaldi, Martin"]
[Result "1/2-1/2"]
[ECO "D43"]
[WhiteElo "2343"]
[BlackElo "2389"]
[Annotator "TA"]
[PlyCount "60"]
[EventDate "2022.04.10"]
[EventType "tourn"]
[EventCountry "DEN"]
[SourceTitle "playchess.com"]
[Source "ChessBase"]
[SourceQuality "1"]
[TimeControl "40/5400+30:1800+30"]

{[%evp 14,60,11,4,1,8,7,0,0,0,7,0,35,18,70,63,54,30,80,14,20,7,18,8,24,15,22,14,39,18,41,8,10,21,27,16,25,37,60,43,12,36,60,76,69,68,74,0,18]} 1. c4 {[%emt 0:00:45]} e6 {[%emt 0:01:08]} 2. d4 {[%emt 0:01:32]} d5 {[%emt 0:00:29]} 3. Nc3 {[%emt 0:00:51]} c6 {[%emt 0:01:14]} 4. Nf3 {[%emt 0:02:13]} Nf6 {[%emt 0:03:10]} 5. cxd5 {[%emt 0:02:24]} exd5 {[%emt 0:00:19]} 6. Bg5 {[%emt 0:00:54]} h6 {[%emt 0:00:11]} 7. Bh4 {[%emt 0:01:33]} Be7 {[%emt 0:02:13]} 8. Qc2 {[%emt 0:01:41]} g6 {[%emt 0:00:30] D36: Queen's Gambit Declined: Exchange Variation: Main line (5 Bg5 c6 6 Qc2).} 9. e3 {[%emt 0:01:43]} Bf5 {[%emt 0:00:10]} 10. Bd3 {[%emt 0:00:53]} Bxd3 {[%emt 0:00:15]} 11. Qxd3 {[%emt 0:00:04]} Nbd7 {[%emt 0:04:05]} 12. O-O-O {[%emt 0:02:59] [#]} Nh5 $146 {[%emt 0:05:40]} ({Predecessor:} 12... O-O 13. h3 b5 14. Kb1 b4 15. Na4 Ne4 16. Bxe7 Qxe7 17. Rhf1 Nb6 18. Qa6 b3 {0-1 (24) Reimold,D (1919)-Wichmann,C (2120) Playchess.com INT 2020}) 13. g4 {[%emt 0:05:51] Hoping for Bxe7.} Nf4 {[%emt 0:13:47]} 14. exf4 $14 {[%emt 0:02:25]} Bxh4 {[%emt 0:00:07]} 15. f5 {[%emt 0:13:33] Strongly threatening Rde1+.} gxf5 {[%emt 0:14:47] [#]} (15... Qf6 $11 {keeps the balance.}) 16. Rde1+ {[%emt 0:10:01]} ({But not} 16. Qxf5 Bg5+ 17. Kb1 Qf6 $11) ({Better is} 16. Rhe1+ $1 $16 Kf8 17. Qxf5 (17. Nxh4 Qxh4 18. Qxf5 Qg5+ 19. Re3 Qxf5 $15) 17... Bg5+ 18. Kb1) 16... Kf8 $1 $11 {[%emt 0:00:16]} 17. Qxf5 {[%emt 0:00:14]} Bg5+ {[%emt 0:03:04]} 18. Kc2 {[%emt 0:06:49] aiming for h4.} Qf6 $1 {[%emt 0:02:47]} 19. Qd3 {[%emt 0:07:06]} Qg6 {[%emt 0:08:50]} 20. Ne2 {[%emt 0:10:42]} Qxd3+ {[%emt 0:09:16]} 21. Kxd3 {[%emt 0:00:16]} Nf6 {[%emt 0:01:09]} 22. h3 {[%emt 0:07:51][%cal Bh2h3,Bh3h4][%mdl 32]} ({Much worse is} 22. h4 {[#]} Nxg4 $1 23. hxg5 Nxf2+ 24. Kc3 Nxh1 25. Rxh1 Kg7 $15) 22... Ne4 {[%emt 0:01:37]} 23. Rhf1 {[%emt 0:01:09]} h5 {[%emt 0:08:32]} 24. h4 {[%emt 0:01:49]} Be7 {[%emt 0:03:32]} 25. g5 {[%emt 0:00:48]} Bb4 {[%emt 0:01:09]} 26. Rd1 {[%emt 0:00:29]} Bd6 {[%emt 0:00:55]} 27. Ne5 {[%emt 0:04:19]} Kg7 {[%emt 0:04:09]} 28. f3 {[%emt 0:02:27]} Nc5+ {[%emt 0:00:12]} 29. dxc5 {[%emt 0:01:05] &Bianco is more active.} Bxe5 {[%emt 0:00:02]} 30. b3 {[%emt 0:01:01]} (30. f4 $16 Bc7 31. Rde1) 30... Rae8 {Weighted Error Value: White=0.17 (very precise) /Black=0.13 (very precise)} 1/2-1/2

[Event "Danish-ch Masters 2022"]
[Site "Svendborg"]
[Date "2022.04.16"]
[Round "8.1"]
[White "Buhl Bjerre, Jonas"]
[Black "Haubro, Martin"]
[Result "1-0"]
[ECO "B51"]
[WhiteElo "2611"]
[BlackElo "2399"]
[Annotator "TA"]
[PlyCount "37"]
[EventDate "2022.04.10"]
[EventType "tourn"]
[EventCountry "DEN"]
[SourceTitle "playchess.com"]
[Source "ChessBase"]
[SourceQuality "1"]
[TimeControl "40/5400+30:1800+30"]

{[%evp 9,37,8,7,0,20,4,27,20,34,14,64,52,47,48,67,43,82,61,127,115,96,95,94,68,66,64,111,113,527,530]} 1. e4 {[%emt 0:00:10]} c5 {[%emt 0:00:54]} 2. Nf3 {[%emt 0:00:10]} d6 {[%emt 0:00:04]} 3. Bb5+ {[%emt 0:01:28]} Nd7 {[%emt 0:00:06]} 4. d4 {[%emt 0:00:12]} cxd4 {[%emt 0:00:30]} 5. Nxd4 {[%emt 0:00:05]} Ngf6 {[%emt 0:02:24]} 6. Bd3 {[%emt 0:00:13] [#] B51: Sicilian: Moscow Variation (3 Bb5+) without 3...Bd7.} e5 $146 {[%emt 0:12:22]} ({Predecessor:} 6... Nc5 7. Nc3 e6 8. O-O Be7 9. Re1 O-O 10. Nb3 Nxd3 11. Qxd3 a6 12. Bf4 h6 {0-1 (46) Vokhidov,S (2616)-Navara,D (2758) Riga 2021}) 7. Nb3 {[%emt 0:03:08]} d5 {[%emt 0:16:32]} 8. exd5 {[%emt 0:00:28] White has an edge.} Nxd5 {[%emt 0:00:07]} 9. O-O {[%emt 0:00:16]} N5f6 {[%emt 0:08:53]} (9... Be7 $11) 10. Re1 {[%emt 0:06:05]} Be7 {[%emt 0:00:38]} 11. Nc3 {[%emt 0:01:24]} O-O {[%emt 0:00:39]} 12. Bg5 {[%emt 0:09:17]} Nd5 {[%emt 0:09:24]} 13. Qh5 {[%emt 0:09:52][%csl Gd3][%cal Rh5h7] [#]} g6 {[%emt 0:00:12]} 14. Bxe7 $16 {[%emt 0:01:02]} Nxe7 {[%emt 0:00:05]} 15. Qh4 $36 {[%emt 0:06:45][%mdl 2048] White has strong initiative. 0x0.001b374052dedp-1022s more active pieces. The black rooks are badly placed.} Nc6 {[%emt 0:02:51]} 16. Qxd8 {[%emt 0:01:16]} Rxd8 {[%emt 0:00:08]} 17. Be4 {[%emt 0:04:40]} Ne7 {[%emt 0:14:55]} (17... Nd4 $14) 18. Rad1 {[%emt 0:04:25]} Rf8 $2 {[%emt 0:01:07][%mdl 8192] [#]} (18... Rb8 $16 {is tougher.}) 19. Bxb7 $1 {[%emt 0:00:41][%mdl 512] Weighted Error Value: White=0.08 (flawless) /Black=0.79} 1-0